bitfinex-derivatives/quotes_SOLF0:USTF0_20250109
["timestamp","ask_amount","ask_price","bid_price","bid_amount"]
[1736426722557,4.66,190.07,189.91,10.63866087]
[1736426722753,223.1399494,190.16,189.95,2.6339]
[1736426722754,2.6331,190.01,189.95,2.6339]
[1736426723359,2.633,190.02,189.96,2.6338]
[1736426723568,12.25036087,190.06,189.94,10.63866087]
[1736426724267,2.6331,190.02,189.95,2.6339]
[1736426724464,12.25036087,190.06,189.94,10.63866087]
[1736426724962,2.6332,190.01,189.94,13.27266087]
[1736426725369,2.6332,190.01,189.95,2.6339]
[1736426725564,2.633,190.02,189.94,10.63866087]
[1736426726163,2.633,190.02,189.96,2.6337]
[1736426726468,2.633,190.02,189.94,10.63866087]
[1736426727078,2.6336,189.98,189.92,4.6909]
[1736426727274,10.63866087,190.03,189.92,3.1452]
[1736426727677,2.6333,190.0,189.92,3.1452]
[1736426727982,10.63866087,190.03,189.93,2.6341]
[1736426728477,10.63866087,190.03,189.92,5.7795]
[1736426728873,2.6337,189.97,189.92,5.7795]
[1736426729275,2.6337,189.97,189.92,3.1452]
[1736426729475,10.63866087,190.03,189.92,3.1452]
[1736426729671,10.63866087,190.0,189.83,1.5544]
[1736426729874,10.63866087,190.0,189.87,10.63866087]
[1736426730083,2.6345,189.91,189.87,10.63866087]
[1736426730384,2.6345,189.91,189.84,18.50736087]
[1736426730575,2.6345,189.91,189.85,2.6352]
[1736426730779,2.6347,189.9,189.85,2.6352]
[1736426731280,10.63866087,189.97,189.85,2.6352]
[1736426731474,2.6345,189.92,189.85,2.6352]
[1736426731677,10.63866087,189.97,189.82,10.63866087]
[1736426731981,2.6349,189.89,189.82,10.63866087]
[1736426732183,2.6349,189.89,189.83,2.6355]
[1736426732576,15.31866087,189.97,189.82,10.63866087]
[1736426732774,2.6347,189.9,189.84,2.6354]
[1736426733885,10.63866087,189.94,189.82,10.63866087]
[1736426734782,2.6349,189.89,189.83,2.6356]
[1736426734982,10.63866087,189.94,189.82,10.63866087]
[1736426735682,10.63866087,189.94,189.82,13.27426087]
[1736426736380,10.63866087,189.94,189.81,2.6359]
[1736426736579,10.63866087,189.94,189.78,4.72]
[1736426736580,10.63866087,189.91,189.67,7.2473252]
[1736426736784,2.6352,189.86,189.76,10.63866087]
[1736426736987,4.6766,189.9,189.74,4.5548]
[1736426737181,4.6766,189.9,189.78,10.63866087]
[1736426738180,2.6354,189.85,189.79,2.6361]
[1736426738484,2.6354,189.85,189.78,10.63866087]
[1736426738688,4.6766,189.9,189.81,10.63866087]
[1736426739081,2.6349,189.88,189.81,13.27446087]
[1736426739388,15.31866087,189.97,189.84,10.63866087]
[1736426739580,1.564,189.96,189.84,10.63866087]
[1736426739785,1.564,189.96,189.85,4.76]
[1736426740085,2.6344,189.92,189.85,18.54296087]
[1736426740284,2.6344,189.92,189.85,7.9043]
[1736426740584,2.6344,189.92,189.85,21.17816087]
[1736426741888,1.564,189.96,189.85,21.17816087]
[1736426742090,2.6345,189.91,189.85,21.17816087]
[1736426742692,1.564,189.96,189.85,18.54296087]
[1736426742885,10.63866087,189.95,189.85,15.39866087]
[1736426743087,10.63866087,189.95,189.85,4.76]
[1736426743385,2.6349,189.89,189.85,4.76]
[1736426745382,1.564,189.96,189.88,10.63866087]
[1736426745688,1.5927,189.99,189.88,10.63866087]
[1736426745889,2.6342,189.94,189.89,2.6348]
[1736426746085,10.63866087,189.98,189.88,10.63866087]
[1736426746387,2.6342,189.93,189.88,13.27356087]
[1736426746983,2.6342,189.93,189.88,10.63866087]
[1736426747188,1.5927,189.99,189.88,10.63866087]
[1736426747488,10.63866087,190.05,189.91,10.63866087]
[1736426747687,10.63866087,190.05,189.94,10.63866087]
[1736426747886,2.6332,190.01,189.94,10.63866087]
[1736426748083,2.6332,190.01,189.96,2.6338]
[1736426748981,10.63866087,190.05,189.94,12.18806087]
[1736426749183,10.63866087,190.08,189.97,10.63866087]
[1736426749586,4.5853,190.09,189.97,10.63866087]
[1736426749790,1.4967,190.09,190.0,10.63866087]
[1736426750293,2.6323,190.07,190.0,10.63866087]
[1736426751090,2.6325,190.06,190.0,10.63866087]
[1736426751301,3.1195,190.14,190.0,10.63866087]
[1736426751302,13.75816087,190.14,190.0,10.63866087]
[1736426751496,13.75816087,190.14,190.03,10.63866087]
[1736426751691,2.6317,190.12,190.03,10.63866087]
[1736426751892,10.63866087,190.14,190.04,1.6144]
[1736426753294,2.6322,190.08,190.04,1.6144]
[1736426753697,10.63866087,190.14,190.04,1.6144]
[1736426753899,2.6317,190.11,190.04,1.6144]
[1736426754199,10.63866087,190.14,190.04,1.6144]
[1736426754390,2.6317,190.11,190.04,1.6144]
[1736426754688,10.63866087,190.14,190.04,1.6144]
[1736426755090,2.6324,190.07,190.04,1.6144]
[1736426755796,2.6324,190.06,190.04,1.6144]
[1736426758401,10.63866087,190.11,190.01,1.4734]
[1736426759001,2.6325,190.06,190.01,1.4734]
[1736426759194,10.63866087,190.11,190.01,1.4734]
[1736426759802,2.6327,190.05,190.01,1.4734]
[1736426759998,10.63866087,190.11,190.01,1.4734]
[1736426760498,2.6327,190.04,190.01,1.4734]
[1736426761098,2.6326,190.05,190.01,1.4734]
[1736426761302,10.63866087,190.14,190.03,10.63866087]
[1736426761498,1.54,190.16,190.03,10.63866087]
[1736426761805,1.54,190.16,190.03,13.27136087]
[1736426761806,2.6319,190.1,190.03,13.27136087]
[1736426762001,1.54,190.16,190.03,10.63866087]
[1736426762302,10.63866087,190.14,190.01,1.4734]
[1736426762699,10.63866087,190.11,189.99,3.1479]
[1736426763299,2.6331,190.02,189.99,3.1479]
[1736426763701,10.63866087,190.08,189.97,10.63866087]
[1736426763903,10.63866087,190.08,189.95,4.76]
[1736426764701,10.63866087,190.05,189.94,10.63866087]
[1736426764904,10.63866087,190.05,189.92,3.1792]
[1736426765106,10.63866087,190.05,189.92,7.9392]
[1736426767611,10.63866087,190.05,189.92,6.3586]
[1736426767612,2.6339,189.96,189.92,6.3586]
[1736426768107,10.63866087,190.05,189.92,6.3586]
[1736426768319,2.6339,189.96,189.92,6.3586]
[1736426768807,2.6336,189.98,189.92,8.9929]
[1736426769012,1.5419,190.07,189.94,10.63866087]
[1736426769407,2.633,190.02,189.97,10.63866087]
[1736426771202,2.633,190.02,189.97,13.27226087]
[1736426771713,1.5419,190.07,189.97,10.63866087]
[1736426771912,1.5419,190.07,189.94,10.63866087]
[1736426772414,2.6337,189.97,189.94,10.63866087]
[1736426772810,2.6337,189.97,189.93,1.5215]
[1736426773010,10.63866087,190.04,189.93,1.5215]
[1736426773212,2.6337,189.97,189.93,1.5215]
[1736426773913,10.63866087,190.01,189.92,1.5986]
[1736426774718,10.63866087,190.01,189.88,10.63866087]
[1736426775111,10.63866087,189.98,189.88,10.63866087]
[1736426775612,2.6345,189.91,189.88,10.63866087]
[1736426777419,2.6347,189.9,189.86,3.1329]
[1736426777619,10.63866087,189.98,189.86,3.1329]
[1736426777818,2.635,189.87,189.86,1.5793]
[1736426778018,10.63866087,189.98,189.86,1.5793]
[1736426778725,2.635,189.87,189.86,1.5793]
[1736426779314,2.635,189.87,189.85,10.63866087]
[1736426780419,10.63866087,189.98,189.82,12.24126087]
[1736426780619,10.63866087,189.94,189.82,12.24126087]
[1736426780919,2.6353,189.86,189.82,12.24126087]
[1736426781116,2.6353,189.86,189.82,1.6026]
[1736426781322,10.63866087,189.91,189.81,1.5353]
[1736426781521,2.6356,189.84,189.78,2.6363]
[1736426781715,10.63866087,189.91,189.75,1.5469]
[1736426781921,10.63866087,189.88,189.76,10.63866087]
[1736426782321,2.636,189.81,189.76,10.63866087]
[1736426783725,10.63866087,189.88,189.76,10.63866087]
[1736426784023,10.63866087,189.88,189.75,1.5469]
[1736426784821,2.6363,189.79,189.75,1.5469]
[1736426785424,10.63866087,189.85,189.7,13.27596087]
[1736426785612,10.63866087,189.85,189.71,10.63866087]
[1736426785815,2.6359,189.81,189.7,2.6373]
[1736426786015,10.63866087,189.85,189.72,10.63866087]
[1736426786413,2.6365,189.77,189.72,10.63866087]
[1736426786818,10.63866087,189.85,189.72,10.63866087]
[1736426787420,2.6365,189.77,189.72,10.63866087]
[1736426787726,15.41866087,189.85,189.72,10.63866087]
[1736426788023,2.6367,189.76,189.72,10.63866087]
[1736426788226,10.63866087,189.82,189.68,3.1521]
[1736426788425,10.63866087,189.82,189.71,10.63866087]
[1736426789731,10.63866087,189.82,189.71,13.27586087]
[1736426790120,10.63866087,189.82,189.63,1.529]
[1736426790316,4.6312,189.81,189.68,10.63866087]
[1736426791023,2.637,189.74,189.68,13.27626087]
[1736426791324,4.6312,189.81,189.68,10.63866087]
[1736426791624,2.637,189.73,189.68,10.63866087]
[1736426792320,10.63866087,189.79,189.63,1.529]
[1736426792828,10.63866087,189.79,189.65,10.63866087]
[1736426793031,2.6374,189.71,189.65,10.63866087]
[1736426793323,10.63866087,189.79,189.65,10.63866087]
[1736426794120,2.6373,189.71,189.66,2.6379]
[1736426794323,10.63866087,189.76,189.63,1.529]
[1736426794923,10.63866087,189.76,189.42,79.76351416]
[1736426795118,10.63866087,189.7,189.51,3.058]
[1736426795323,10.63866087,189.7,189.59,10.63866087]
[1736426795630,10.63866087,189.73,189.59,10.63866087]
[1736426795928,10.63866087,189.76,189.62,10.63866087]
[1736426797025,10.63866087,189.7,189.57,10.63866087]
[1736426797325,10.63866087,189.67,189.54,10.63866087]
[1736426797829,10.63866087,189.67,189.57,10.63866087]
[1736426798231,2.6384,189.64,189.58,2.639]
[1736426798523,10.63866087,189.67,189.57,10.63866087]
[1736426798729,2.6383,189.64,189.57,13.27776087]
[1736426798932,10.63866087,189.67,189.57,10.63866087]
[1736426799626,2.6385,189.63,189.57,10.63866087]
[1736426800426,1.5856,189.69,189.6,10.63866087]
[1736426800827,10.63866087,189.72,189.6,10.63866087]
[1736426801130,1.5545,189.77,189.63,10.63866087]
[1736426801332,10.63866087,189.79,189.66,10.63866087]
[1736426801532,2.6367,189.75,189.69,2.6375]
[1736426801729,10.63866087,189.79,189.67,4.88]
[1736426802137,2.6364,189.77,189.71,2.6372]
[1736426802327,13.65726087,189.83,189.69,10.63866087]
[1736426802533,13.65726087,189.83,189.69,4.88]
[1736426802534,10.63866087,189.8,189.69,4.88]
[1736426803135,10.63866087,189.74,189.65,1.518]
[1736426803431,10.63866087,189.74,189.64,3.1068]
[1736426803633,10.63866087,189.71,189.58,1.6206]
[1736426803836,2.638,189.66,189.58,12.2433]
[1736426804134,10.63866087,189.71,189.58,9.6044]
[1736426804330,3.1632,189.73,189.58,9.6044]
[1736426804331,3.1632,189.73,189.59,10.63866087]
[1736426804534,13.80186087,189.73,189.59,10.63866087]
[1736426804736,10.63866087,189.7,189.58,9.6044]
[1736426804935,10.63866087,189.7,189.55,10.63866087]
[1736426805230,10.63866087,189.7,189.56,1.5295]
[1736426805434,2.6384,189.64,189.56,4.1688]
[1736426805736,10.63866087,189.66,189.56,4.1688]
[1736426805934,2.6385,189.62,189.56,1.5295]
[1736426806129,10.63866087,189.66,189.56,1.5295]
[1736426806536,2.6384,189.63,189.56,1.5295]
[1736426806731,1.6335,189.72,189.54,1.5261]
[1736426806927,2.639,189.59,189.54,1.5261]
[1736426807633,1.6117,189.64,189.54,1.5261]
[1736426807831,1.6117,189.64,189.49,20.33909711]
[1736426808436,15.39909711,189.55,189.31,7.2473252]
[1736426808643,4.7898,189.54,189.37,15.39909711]
[1736426809139,2.6405,189.48,189.37,15.39909711]
[1736426809336,4.7898,189.54,189.37,15.39909711]
[1736426809537,15.39909711,189.52,189.35,15.39909711]
[1736426810339,20.39909711,189.52,189.35,15.39909711]
[1736426810842,2.6405,189.48,189.39,2.6416]
[1736426811037,5.0,189.52,189.35,15.39909711]
[1736426812740,2.6407,189.46,189.35,15.39909711]
[1736426813534,20.18889711,189.54,189.38,2.6418]
[1736426813735,4.98,189.53,189.35,15.39909711]
[1736426813939,4.7898,189.54,189.41,15.39909711]
[1736426814143,4.7898,189.54,189.45,2.6409]
[1736426814343,2.6401,189.51,189.42,8.1766]
[1736426814644,4.7898,189.54,189.42,8.1766]
[1736426815044,20.18889711,189.54,189.42,5.0]
[1736426815347,2.6407,189.47,189.39,2.6416]
[1736426815541,5.0,189.53,189.36,15.39909711]
[1736426816341,2.6399,189.53,189.46,2.6407]
[1736426816538,15.39909711,189.6,189.43,15.39909711]
[1736426816845,3.0331,189.59,189.46,15.39909711]
[1736426817046,3.0331,189.59,189.49,15.39909711]
[1736426817241,1.4836,189.59,189.49,15.39909711]
[1736426817448,4.1225,189.59,189.5,2.6401]
[1736426817646,1.4836,189.59,189.49,15.39909711]
[1736426817947,20.39909711,189.66,189.52,15.39909711]
[1736426818147,2.6386,189.62,189.53,2.6396]
[1736426818341,20.39909711,189.66,189.53,2.6396]
[1736426818748,20.39909711,189.66,189.52,15.39909711]
[1736426818940,2.6386,189.62,189.55,2.6395]
[1736426819645,2.6384,189.63,189.56,2.6393]
[1736426819846,2.9842,189.67,189.52,20.39909711]
[1736426820444,2.9842,189.67,189.55,15.39909711]
[1736426820942,2.6384,189.64,189.56,4.1178]
[1736426821539,2.6384,189.63,189.56,4.1178]
[1736426821840,2.9842,189.67,189.56,4.1178]
[1736426822041,2.9842,189.67,189.56,1.4785]
[1736426822246,2.9842,189.67,189.57,2.6392]
[1736426822546,1.4836,189.67,189.56,3.0685]
[1736426822743,2.6377,189.68,189.58,15.39909711]
[1736426823448,2.6378,189.67,189.59,2.6388]
[1736426823647,15.39909711,189.72,189.58,15.39909711]
[1736426824148,2.6377,189.68,189.61,2.6386]
[1736426824344,15.39909711,189.78,189.61,15.39909711]
[1736426824541,20.39909711,189.78,189.61,15.39909711]
[1736426824740,20.39909711,189.78,189.64,15.39909711]
[1736426824947,5.0,189.78,189.64,15.39909711]
[1736426825346,20.39909711,189.78,189.61,15.39909711]
[1736426825751,2.637,189.73,189.61,15.39909711]
[1736426825946,4.6194,189.79,189.64,15.39909711]
[1736426826146,2.6364,189.78,189.7,2.6374]
[1736426826551,4.6194,189.79,189.67,15.39909711]
[1736426826852,20.39909711,189.84,189.7,15.39909711]
[1736426827055,15.39909711,189.87,189.7,15.39909711]
[1736426827550,15.39909711,189.84,189.7,15.39909711]
[1736426827746,2.6363,189.79,189.7,15.39909711]
[1736426828251,15.39909711,189.84,189.7,15.39909711]
[1736426828448,2.6362,189.79,189.7,15.39909711]
[1736426828747,15.39909711,189.84,189.7,15.39909711]
[1736426829052,1.5945,189.89,189.7,15.39909711]
[1736426829053,2.6358,189.82,189.7,15.39909711]
[1736426829445,2.6355,189.84,189.7,15.39909711]
[1736426829648,2.6355,189.84,189.76,2.6366]
[1736426829851,15.39909711,189.88,189.76,2.6366]
[1736426830553,15.39909711,189.88,189.7,15.39909711]
[1736426830753,15.39909711,189.88,189.77,2.6364]
[1736426830952,18.45199711,189.91,189.73,15.39909711]
[1736426831252,18.45199711,189.91,189.68,5.0]
[1736426831253,18.45199711,189.91,189.76,15.39909711]
[1736426831445,2.6352,189.86,189.77,3.1481]
[1736426831643,3.0529,189.91,189.8,2.6359]
[1736426832048,2.6358,189.82,189.74,1.4834]
[1736426832243,2.6358,189.82,189.76,2.6366]
[1736426832444,18.45199711,189.91,189.74,1.4834]
[1736426832648,2.6351,189.87,189.74,1.4834]
[1736426834253,18.45199711,189.91,189.74,1.4834]
[1736426834453,3.0529,189.91,189.78,15.39909711]
[1736426834654,3.0529,189.91,189.79,3.0623]
[1736426834856,2.6349,189.88,189.8,2.6359]
[1736426835052,2.6349,189.88,189.79,3.0623]
[1736426836054,2.635,189.87,189.81,2.6358]
[1736426838155,2.6351,189.87,189.8,2.636]
[1736426839058,2.6351,189.87,189.81,2.6358]
[1736426840264,2.6347,189.9,189.83,2.6356]
[1736426840854,2.6348,189.89,189.83,2.6356]
[1736426841250,2.6348,189.89,189.79,3.0623]
[1736426841251,5.61662355,189.92,189.79,3.0623]
[1736426841656,15.39909711,189.9,189.79,3.0623]
[1736426841858,15.39909711,189.9,189.74,4.1202]
[1736426842160,2.636,189.81,189.74,1.4834]
[1736426842462,15.39909711,189.87,189.76,2.6365]
[1736426842755,15.39909711,189.87,189.75,1.4957]
[1736426842756,2.6359,189.82,189.75,1.4957]
[1736426843059,15.39909711,189.87,189.75,1.4957]
[1736426843259,2.6357,189.83,189.75,1.4957]
[1736426843459,2.6357,189.83,189.76,4.2007]
[1736426844060,1.5064,189.89,189.76,4.2007]
[1736426844061,1.5064,189.89,189.78,15.39909711]
[1736426844253,5.61662355,189.92,189.81,15.39909711]
[1736426844658,2.6348,189.89,189.83,2.6355]
[1736426845156,5.61662355,189.92,189.81,15.39909711]
[1736426845356,5.61662355,189.92,189.84,15.39909711]
[1736426845551,2.6341,189.94,189.85,3.1504]
[1736426845757,15.39909711,190.02,189.87,15.39909711]
[1736426845953,2.6337,189.97,189.87,15.39909711]
[1736426846360,15.39909711,190.02,189.87,15.39909711]
[1736426846560,2.6339,189.96,189.87,20.33909711]
[1736426846757,15.39909711,190.02,189.87,20.33909711]
[1736426846953,2.6342,189.93,189.87,7.575]
[1736426847555,2.6341,189.94,189.87,7.575]
[1736426847760,15.39909711,190.02,189.87,20.33909711]
[1736426847961,4.6432,190.03,189.87,20.33909711]
[1736426848157,4.6432,190.03,189.9,15.39909711]
[1736426848469,4.6432,190.03,189.93,2.6342]
[1736426848666,3.1049,190.03,189.93,2.6342]
[1736426848866,3.1049,190.03,189.92,2.6343]
[1736426849063,3.1049,190.03,189.91,1.5591]
[1736426849269,15.39909711,190.02,189.91,1.5591]
[1736426849462,2.6338,189.96,189.91,1.5591]
[1736426849663,15.39909711,190.02,189.91,1.5591]
[1736426850068,2.6336,189.98,189.91,1.5591]
[1736426850663,2.6334,189.99,189.91,1.5591]
[1736426850864,3.1049,190.03,189.91,1.5591]
[1736426851265,2.6334,189.99,189.93,2.6341]
[1736426851864,2.6332,190.01,189.94,2.634]
[1736426852871,1.5354,190.07,189.93,15.39909711]
[1736426853072,1.5354,190.07,189.94,3.037]
[1736426853671,1.5354,190.07,189.95,4.94]
[1736426854170,1.5163,190.08,189.96,15.39909711]
[1736426854763,16.91539711,190.08,189.95,4.94]
[1736426854963,3.0674,190.07,189.95,4.94]
[1736426855770,2.6332,190.01,189.95,7.5739]
[1736426856072,2.6332,190.01,189.95,4.94]
[1736426856572,2.6329,190.03,189.95,4.94]
[1736426857069,15.39909711,190.11,189.96,15.39909711]
[1736426857273,2.6325,190.06,189.96,15.39909711]
[1736426857862,7.9318,190.13,190.01,2.633]
[1736426857863,2.9918,190.13,190.01,2.633]
[1736426858870,2.9918,190.13,189.96,15.39909711]
[1736426859172,2.6321,190.08,189.96,15.39909711]
[1736426859474,2.9918,190.13,189.99,15.39909711]
[1736426859666,2.9918,190.13,190.02,2.6329]
[1736426859866,1.5728,190.16,190.02,15.39909711]
[1736426860069,2.6315,190.13,190.08,2.6321]
[1736426860572,2.6315,190.13,190.05,15.39909711]
[1736426860872,1.5728,190.16,190.05,15.39909711]
[1736426861074,1.5728,190.16,190.04,1.6034]
[1736426861270,1.5728,190.16,190.06,2.6324]
[1736426861472,1.5728,190.16,190.04,1.6034]
[1736426862176,2.632,190.1,190.04,4.2359]
[1736426862375,1.5728,190.16,190.04,1.6034]
[1736426862675,2.6316,190.13,190.03,3.0584]
[1736426862874,1.5728,190.16,190.03,3.0584]
[1736426863072,15.39909711,190.2,190.05,15.39909711]
[1736426863976,15.39909711,190.2,190.05,2.6325]
[1736426864171,15.39909711,190.2,190.03,3.0584]
[1736426864671,2.6317,190.12,190.06,2.6323]
[1736426865480,15.39909711,190.2,190.08,2.632]
[1736426865976,15.39909711,190.2,190.05,15.39909711]
[1736426866573,2.6313,190.14,190.08,2.632]
[1736426866972,15.39909711,190.2,190.05,15.39909711]
[1736426867170,15.39909711,190.2,190.09,2.6319]
[1736426868171,15.39909711,190.2,190.05,15.39909711]
[1736426868172,2.6312,190.15,190.05,15.39909711]
[1736426868576,15.39909711,190.2,190.05,15.39909711]
[1736426868778,15.39909711,190.17,190.03,3.0584]
[1736426869678,15.39909711,190.17,190.03,5.6911]
[1736426869877,15.39909711,190.17,190.03,3.0584]
[1736426870573,15.39909711,190.17,190.05,2.6325]
[1736426870976,15.39909711,190.17,190.03,3.0584]
[1736426871176,2.6315,190.13,190.07,2.6322]
[1736426871377,20.31909711,190.2,190.03,3.0584]
[1736426871577,20.31909711,190.2,190.05,15.39909711]
[1736426871976,2.6313,190.15,190.1,2.6318]
[1736426872283,1.4821,190.21,190.08,15.39909711]
[1736426872483,2.631,190.17,190.08,15.39909711]
[1736426872883,2.631,190.17,190.12,2.6316]
[1736426873979,1.4821,190.21,190.11,15.39909711]
[1736426874183,1.4821,190.21,190.12,1.5287]
[1736426874380,3.0943,190.23,190.12,3.0317]
[1736426874774,1.5714,190.23,190.12,3.0317]
[1736426875283,2.6305,190.2,190.15,2.6311]
[1736426875787,2.6303,190.21,190.15,2.6311]
[1736426876182,1.5089,190.27,190.14,2.6313]
[1736426876391,15.39909711,190.26,190.14,2.6313]
[1736426876782,2.6306,190.2,190.14,2.6313]
[1736426876986,2.6306,190.2,190.15,2.6311]
[1736426877183,1.5089,190.27,190.12,3.0317]
[1736426877385,2.6303,190.22,190.12,3.0317]
[1736426878185,1.5089,190.27,190.14,15.39909711]
[1736426878381,2.6304,190.21,190.14,15.39909711]
[1736426879885,2.6304,190.21,190.15,2.6311]
[1736426880089,2.6306,190.19,190.12,3.0317]
[1736426880388,1.5089,190.27,190.12,3.0317]
[1736426881186,2.6309,190.18,190.13,2.6314]
[1736426881988,1.5089,190.27,190.12,3.0317]
[1736426882187,1.5089,190.27,190.15,2.6311]
[1736426882384,1.5089,190.27,190.14,15.39909711]
[1736426882585,2.63,190.24,190.18,2.6306]
[1736426882779,1.5089,190.27,190.18,2.6306]
[1736426883190,2.63,190.24,190.14,15.39909711]
[1736426883391,1.5089,190.27,190.14,15.39909711]
[1736426883593,15.39909711,190.26,190.12,3.0317]
[1736426883892,2.6308,190.18,190.14,2.6313]
[1736426884094,1.546,190.25,190.14,2.6313]
[1736426884491,2.6307,190.19,190.14,2.6313]
[1736426884693,2.6307,190.19,190.15,2.6311]
[1736426885186,1.546,190.25,190.15,2.6311]
[1736426885788,15.39909711,190.23,190.12,2.6315]
[1736426885989,15.39909711,190.23,190.1,1.5875]
[1736426886392,1.546,190.25,190.1,4.7337]
[1736426886685,1.546,190.25,190.11,15.39909711]
[1736426887492,2.6305,190.2,190.15,2.6311]
[1736426888597,2.6304,190.21,190.15,2.6311]
[1736426889190,1.5089,190.27,190.11,15.39909711]
[1736426889396,2.6302,190.22,190.14,15.39909711]
[1736426889693,1.5089,190.27,190.18,2.6307]
[1736426889995,2.6301,190.23,190.18,2.6307]
[1736426890291,1.5089,190.27,190.17,2.6308]
[1736426890796,1.5369,190.31,190.2,2.6304]
[1736426891098,3.0874,190.31,190.17,20.27909711]
[1736426891397,3.0874,190.31,190.18,3.1607]
[1736426891588,15.39909711,190.29,190.17,4.88]
[1736426893095,2.6303,190.22,190.19,2.6306]
[1736426893295,15.39909711,190.29,190.14,15.39909711]
[1736426893487,15.39909711,190.29,190.11,18.55979711]
[1736426893693,2.6306,190.19,190.16,2.6309]
[1736426894095,15.39909711,190.26,190.16,2.6309]
[1736426894894,2.6305,190.2,190.16,2.6309]
[1736426895901,15.39909711,190.23,190.11,3.1607]
[1736426896096,1.5472,190.22,190.08,4.88]
[1736426896292,3.1789,190.22,190.08,4.88]
[1736426896500,2.6313,190.15,190.08,4.88]
[1736426896896,2.6313,190.15,190.08,2.6321]
[1736426897093,2.6313,190.15,190.07,4.88]
[1736426897298,2.6313,190.15,190.06,4.88]
[1736426898703,2.6313,190.15,190.08,15.39909711]
[1736426899105,2.6308,190.18,190.08,15.39909711]
[1736426899299,1.5472,190.22,190.08,15.39909711]
[1736426899505,1.5472,190.22,190.11,15.39909711]
[1736426899708,2.6305,190.2,190.14,2.6312]
[1736426901211,2.6305,190.2,190.12,4.7706]
[1736426901412,2.6305,190.2,190.15,2.6311]
[1736426901905,2.6305,190.2,190.12,4.7706]
[1736426902112,2.6305,190.2,190.14,2.6313]
[1736426902313,2.6306,190.19,190.14,2.6313]
[1736426903717,2.6302,190.22,190.17,2.6308]
[1736426906914,1.6234,190.25,190.14,20.25909711]
[1736426907210,1.6234,190.25,190.12,4.7706]
[1736426907410,1.6234,190.25,190.08,15.39909711]
[1736426907616,1.6234,190.25,190.08,20.23909711]
[1736426908812,15.39909711,190.23,190.08,20.23909711]
[1736426909213,15.39909711,190.23,190.12,2.6315]
[1736426909818,2.6311,190.16,190.12,2.6315]
[1736426910921,15.39909711,190.23,190.08,15.39909711]
[1736426911122,15.39909711,190.2,190.06,7.9063]
[1736426911320,2.9948,190.19,190.06,7.9063]
[1736426911924,2.6311,190.16,190.09,2.632]
[1736426912124,2.9948,190.19,190.09,2.632]
[1736426912417,2.6321,190.09,190.04,2.6327]
[1736426912722,15.39909711,190.14,189.99,18.55209711]
[1736426913126,15.39909711,190.14,190.02,2.6329]
[1736426913420,15.39909711,190.14,189.99,18.55209711]
[1736426913820,2.6323,190.07,189.99,18.55209711]
[1736426914921,2.632,190.09,190.03,2.6328]
[1736426915221,6.3837,190.16,189.99,18.55209711]
[1736426915417,6.3837,190.16,190.02,15.39909711]
[1736426915611,1.5437,190.16,190.02,15.39909711]
[1736426916017,2.6317,190.12,190.02,15.39909711]
[1736426916216,2.6317,190.12,190.06,2.6324]
[1736426918018,2.6315,190.13,190.05,15.39909711]
[1736426918224,1.5437,190.16,190.05,15.39909711]
[1736426918417,1.5437,190.16,190.08,2.632]
[1736426918722,2.6314,190.14,190.08,2.632]
[1736426919323,2.6311,190.16,190.06,4.82]
[1736426919516,2.6311,190.16,190.08,15.39909711]
[1736426919821,1.5071,190.19,190.1,2.6317]
[1736426920022,2.6308,190.18,190.11,15.39909711]
[1736426920223,1.5535,190.24,190.11,15.39909711]
[1736426920523,1.5535,190.24,190.12,2.6314]
[1736426920720,1.5535,190.24,190.11,15.39909711]
[1736426921024,1.5535,190.24,190.13,2.6314]
[1736426921423,1.5535,190.24,190.11,15.39909711]
[1736426921725,1.5535,190.24,190.14,2.6313]
[1736426922115,2.6307,190.19,190.11,15.39909711]
[1736426922320,1.5535,190.24,190.15,2.6312]
[1736426922515,1.5535,190.24,190.11,15.39909711]
[1736426923216,1.5535,190.24,190.14,15.39909711]
[1736426923420,1.5492,190.27,190.14,15.39909711]